bitfinex/quotes_SOLUSD_20220306
["timestamp","ask_amount","ask_price","bid_price","bid_amount"]
[1646582289060,1.56410393,87.283,87.232,23.1072]
[1646582289259,1.56410393,87.295,87.232,23.1072]
[1646582289459,1.56410393,87.295,87.233,0.05596738]
[1646582289758,1.56410393,87.295,87.232,23.1072]
[1646582290159,1.56410393,87.292,87.233,5.729]
[1646582290360,114.9,87.29,87.233,5.729]
[1646582290660,114.9,87.29,87.232,23.1072]
[1646582290864,114.9,87.288,87.232,23.1072]
[1646582291364,5.73,87.287,87.232,23.1072]
[1646582292161,5.73,87.287,87.223,5.73]
[1646582292362,5.73,87.287,87.181,100.0566]
[1646582292363,5.73,87.287,87.21,27.91446857]
[1646582292562,5.73,87.287,87.21,22.18446857]
[1646582292563,1.56410393,87.281,87.21,22.18446857]
[1646582292763,5.73,87.28,87.213,22.18446857]
[1646582292963,1.56410393,87.277,87.213,22.18446857]
[1646582293164,114.9,87.274,87.214,60.17926461]
[1646582293364,5.731,87.273,87.214,60.17926461]
[1646582293567,5.731,87.273,87.215,22.18446857]
[1646582293764,5.731,87.273,87.22,17.2027]
[1646582293967,5.73,87.274,87.22,17.2027]
[1646582294165,55.92496854,87.275,87.221,32.90924131]
[1646582294565,55.92496854,87.275,87.222,27.17924131]
[1646582294764,22.7202,87.279,87.23,17.2004]
[1646582294965,22.7202,87.279,87.231,5.73]
[1646582295164,1.56410393,87.293,87.231,32.90924131]
[1646582295366,1.56410393,87.293,87.232,23.2282]
[1646582295565,1.56410393,87.3,87.233,5.729]
[1646582295765,52.15040562,87.298,87.233,27.17924131]
[1646582296067,5.729,87.297,87.241,63.38982837]
[1646582296468,5.729,87.297,87.242,27.23520869]
[1646582296966,5.729,87.297,87.25,17.1939]
[1646582297566,120.629,87.297,87.25,17.1939]
[1646582297766,5.729,87.297,87.243,23.2282]
[1646582298167,5.649,87.297,87.243,23.2282]
[1646582298371,30.565,87.297,87.234,14.0856713]
[1646582298667,1.56410393,87.295,87.221,37.53903868]
[1646582298969,114.9,87.293,87.221,37.53903868]
[1646582299167,114.9,87.291,87.221,37.53903868]
[1646582299366,5.73,87.29,87.222,47.11916324]
[1646582299568,114.9,87.289,87.23,17.1997]
[1646582299769,114.9,87.287,87.23,17.1997]
[1646582300071,114.9,87.285,87.23,17.1997]
[1646582300268,114.9,87.283,87.23,17.1997]
[1646582300468,5.73,87.282,87.23,17.1997]
[1646582300668,5.73,87.282,87.221,23.3974]
[1646582300669,114.9,87.279,87.221,23.3974]
[1646582300871,120.63,87.279,87.221,23.3974]
[1646582301070,120.63,87.279,87.222,5.73]
[1646582301268,114.9,87.279,87.222,5.73]
[1646582301669,114.9,87.278,87.222,5.73]
[1646582302470,114.9,87.276,87.221,23.3974]
[1646582302670,114.9,87.274,87.221,23.3974]
[1646582302871,5.73,87.273,87.221,23.3974]
[1646582303672,5.73,87.274,87.221,23.3974]
[1646582304074,5.73,87.274,87.23,17.1999]
[1646582304272,24.2885,87.275,87.23,17.1999]
[1646582304473,24.2885,87.275,87.231,5.73]
[1646582304673,114.9,87.274,87.231,5.73]
[1646582304874,114.9,87.274,87.223,5.73]
[1646582305073,114.9,87.274,87.222,5.73]
[1646582306176,24.2885,87.275,87.222,5.73]
[1646582307575,120.63,87.274,87.222,4.73]
[1646582310577,114.9,87.274,87.222,4.73]
[1646582311178,114.9,87.269,87.204,23.5833]
[1646582311776,114.9,87.267,87.204,23.5833]
[1646582312182,25.85260393,87.275,87.205,47.88984807]
[1646582312183,114.9,87.265,87.205,47.88984807]
[1646582312382,120.631,87.264,87.205,47.88984807]
[1646582312585,22.9611,87.263,87.205,47.88984807]
[1646582312783,5.731,87.262,87.205,47.88984807]
[1646582313185,17.2064,87.26,87.205,47.88984807]
[1646582313392,5.731,87.259,87.205,47.88984807]
[1646582314396,5.731,87.259,87.21,17.204]
[1646582314607,5.731,87.262,87.21,17.204]
[1646582314804,22.9611,87.263,87.21,17.204]
[1646582315805,1.56410393,87.261,87.21,17.204]
[1646582316006,1.56410393,87.262,87.205,47.88984807]
[1646582316204,116.46410393,87.262,87.205,47.88984807]
[1646582316605,1.56410393,87.262,87.205,47.88984807]
[1646582317906,5.731,87.261,87.205,47.88984807]
[1646582318108,5.731,87.261,87.21,17.204]
[1646582319109,1.56410393,87.261,87.21,17.204]
[1646582319307,5.731,87.26,87.21,17.204]
[1646582320709,1.56410393,87.261,87.21,17.204]
[1646582321310,22.9611,87.263,87.188,0.05596738]
[1646582321311,1.56410393,87.259,87.188,0.05596738]
[1646582321508,22.9611,87.263,87.188,0.05596738]
[1646582321509,1.56410393,87.252,87.188,0.05596738]
[1646582321708,22.9611,87.263,87.183,24.8029]
[1646582321709,1.56410393,87.246,87.183,24.8029]
[1646582321907,114.9,87.25,87.183,24.8029]
[1646582321908,1.56410393,87.247,87.183,24.8029]
[1646582322114,1.56410393,87.246,87.184,62.08799713]
[1646582322318,5.732,87.248,87.184,62.08799713]
[1646582322517,5.732,87.248,87.184,73.61178248]
[1646582322719,5.732,87.248,87.185,19.2258419]
[1646582322915,5.732,87.248,87.185,24.22061464]
[1646582323116,5.732,87.248,87.19,17.2081]
[1646582324115,5.732,87.248,87.19,36.4339419]
[1646582324716,60.91923242,87.239,87.19,36.4339419]
[1646582324920,23.6516,87.238,87.19,36.4339419]
[1646582325118,23.6516,87.238,87.191,4.99477274]
[1646582325517,23.6516,87.238,87.2,17.2065]
[1646582327429,5.732,87.247,87.2,42.00308202]
[1646582327627,1.56410393,87.248,87.2,42.00308202]
[1646582327824,1.56410393,87.249,87.201,24.0846]
[1646582328224,55.99523346,87.248,87.201,24.0846]
[1646582328425,1.56410393,87.247,87.201,24.0846]
[1646582328624,55.99523346,87.248,87.201,24.0846]
[1646582328625,57.55933739,87.248,87.201,24.0846]
[1646582328824,55.99523346,87.248,87.201,24.0846]
[1646582329425,5.732,87.247,87.201,24.0846]
[1646582330425,1.56410393,87.253,87.21,17.2043]
[1646582330628,1.56410393,87.262,87.21,17.2043]
[1646582330828,1.56410393,87.261,87.21,17.2043]
[1646582331230,1.56410393,87.261,87.211,46.98354345]
[1646582332631,1.56410393,87.261,87.22,17.2021]
[1646582332828,1.56410393,87.262,87.22,17.2021]
[1646582333028,24.5162,87.263,87.22,17.2021]
[1646582333029,26.08030393,87.263,87.22,17.2021]
[1646582333229,24.5162,87.263,87.22,17.2021]
[1646582335933,24.5162,87.263,87.221,5.731]
[1646582336633,24.5162,87.263,87.23,17.2002]
[1646582336834,1.56410393,87.267,87.23,17.2002]
[1646582337034,1.56410393,87.271,87.23,17.2002]
[1646582337236,5.73,87.27,87.231,22.9491]
[1646582337641,5.73,87.27,87.24,17.1981]
[1646582337838,5.73,87.27,87.241,61.0953594]
[1646582338041,5.73,87.271,87.241,61.0953594]
[1646582339342,1.56410393,87.275,87.241,61.0953594]
[1646582340043,1.56410393,87.276,87.241,61.0953594]
[1646582340443,1.56410393,87.277,87.241,61.0953594]
[1646582341761,1.56410393,87.276,87.241,61.0953594]
[1646582342160,1.56410393,87.277,87.241,61.0953594]
[1646582342764,1.56410393,87.285,87.241,61.0953594]
[1646582343162,1.56410393,87.286,87.241,61.0953594]
[1646582343661,1.56410393,87.287,87.25,17.1965]
[1646582343862,1.56410393,87.297,87.25,17.1965]
[1646582344263,1.56410393,87.303,87.25,17.1965]
[1646582344463,5.728,87.302,87.251,23.8711]
[1646582344662,1.56410393,87.303,87.26,17.1928]
[1646582344862,1.56410393,87.304,87.26,17.1928]
[1646582345962,26.14300393,87.307,87.26,17.1928]
[1646582346663,24.5789,87.307,87.26,17.1928]
[1646582347063,1.56410393,87.311,87.26,17.1928]
[1646582347464,23.5696,87.312,87.26,17.1928]
[1646582347664,5.728,87.311,87.26,17.1928]
[1646582348366,1.56410393,87.321,87.27,17.1891]
[1646582348566,1.56410393,87.321,87.271,53.16975827]
[1646582348765,1.56410393,87.326,87.271,53.16975827]
[1646582349166,1.56410393,87.326,87.272,23.4637]
[1646582350268,1.56410393,87.326,87.28,17.189]
[1646582350470,1.56410393,87.327,87.28,17.189]
[1646582350870,26.04240393,87.329,87.28,17.189]
[1646582351068,1.56410393,87.329,87.28,17.189]
[1646582351268,1.56410393,87.334,87.28,17.189]
[1646582351468,1.56410393,87.338,87.28,17.189]
[1646582351668,1.56410393,87.339,87.281,0.05596738]
[1646582351869,1.56410393,87.344,87.29,17.1832]
[1646582352168,7.29010393,87.346,87.29,17.1832]
[1646582352569,1.56410393,87.347,87.29,17.1832]
[1646582352768,1.56410393,87.355,87.291,24.5354]
[1646582352969,1.56410393,87.355,87.3,17.1829]
[1646582353171,1.56410393,87.36,87.301,24.5354]
[1646582353369,1.56410393,87.365,87.301,24.5354]
[1646582353568,1.56410393,87.365,87.301,24.59136738]
[1646582353768,1.56410393,87.364,87.302,61.64965918]
[1646582353969,1.56410393,87.365,87.302,61.64965918]
[1646582354172,24.8391,87.374,87.303,0.05596738]
[1646582354173,1.56410393,87.366,87.303,0.05596738]
[1646582354372,1.56410393,87.367,87.31,17.181]
[1646582354575,1.56410393,87.365,87.31,17.181]
[1646582354773,26.40320393,87.374,87.31,17.181]
[1646582354972,1.56410393,87.373,87.311,23.5977]
[1646582355172,26.40320393,87.374,87.311,23.5977]
[1646582355574,1.56410393,87.373,87.311,23.5977]
[1646582356175,1.56410393,87.373,87.32,17.1809]
[1646582356777,24.8391,87.374,87.32,17.1809]
[1646582357777,1.56410393,87.373,87.32,17.1809]
[1646582358280,1.56410393,87.372,87.32,17.1809]
[1646582358778,26.40320393,87.374,87.32,17.1809]
[1646582359379,1.56410393,87.373,87.32,17.1809]
[1646582360788,26.40320393,87.374,87.32,17.1809]
[1646582360982,1.56410393,87.371,87.32,17.1809]
[1646582362983,1.56410393,87.37,87.32,17.1809]
[1646582364085,1.56410393,87.367,87.32,17.1809]
[1646582364687,1.56410393,87.368,87.32,17.1809]
[1646582365088,1.56410393,87.367,87.32,17.1809]
[1646582366090,1.56410393,87.368,87.32,17.1809]
[1646582366692,1.56410393,87.362,87.32,17.1809]
[1646582367014,1.56410393,87.361,87.32,17.1809]
[1646582367791,1.56410393,87.355,87.302,61.5936918]
[1646582367995,120.624,87.373,87.302,61.5936918]
[1646582367996,1.56410393,87.35,87.302,61.5936918]
[1646582368193,1.56410393,87.348,87.302,61.5936918]
[1646582368395,1.56410393,87.347,87.302,61.5936918]
[1646582368795,1.56410393,87.346,87.302,61.5936918]
[1646582368995,1.56410393,87.345,87.302,61.5936918]
[1646582369696,1.56410393,87.344,87.302,61.5936918]
[1646582369897,1.56410393,87.337,87.302,61.5936918]
[1646582370296,1.56410393,87.336,87.302,61.5936918]
[1646582370899,1.56410393,87.335,87.302,61.5936918]
[1646582371596,1.56410393,87.334,87.302,61.5936918]
[1646582372803,1.56410393,87.333,87.302,61.5936918]
[1646582373202,1.56410393,87.334,87.302,61.5936918]
[1646582373420,1.56410393,87.333,87.302,61.5936918]
[1646582373601,1.56410393,87.333,87.3,17.1866]
[1646582373805,5.726,87.352,87.277,0.05596738]
[1646582373806,1.56410393,87.332,87.277,0.05596738]
[1646582374000,1.56410393,87.324,87.263,23.2864]
[1646582374203,1.56410393,87.32,87.27,17.1919]
[1646582374401,1.56410393,87.318,87.27,17.1919]
[1646582374621,49.95464657,87.317,87.271,63.70932015]
[1646582374821,1.56410393,87.314,87.271,63.70932015]
[1646582375023,1.56410393,87.314,87.27,17.1919]
[1646582375223,1.56410393,87.308,87.253,24.0052]
[1646582375422,1.56410393,87.31,87.253,24.0052]
[1646582375824,1.56410393,87.309,87.253,24.0052]
[1646582376026,1.56410393,87.309,87.254,62.19443944]
[1646582376224,1.56410393,87.307,87.254,62.19443944]
[1646582376524,1.56410393,87.306,87.254,62.19443944]
[1646582378524,1.56410393,87.304,87.254,62.19443944]
[1646582378726,1.56410393,87.306,87.254,62.19443944]
[1646582379723,1.56410393,87.305,87.254,62.19443944]
[1646582380725,1.56410393,87.307,87.254,62.19443944]
[1646582380925,5.728,87.306,87.254,62.19443944]
[1646582381125,1.56410393,87.303,87.254,62.19443944]
[1646582381331,5.728,87.302,87.254,62.19443944]
[1646582382729,5.728,87.303,87.254,62.19443944]
[1646582383327,5.728,87.305,87.254,62.19443944]
[1646582384131,5.728,87.305,87.26,17.194]
[1646582384330,1.56410393,87.307,87.26,17.194]
[1646582384530,5.728,87.306,87.26,17.194]
[1646582385131,1.56410393,87.308,87.26,17.194]
[1646582385331,1.56410393,87.307,87.26,17.194]
[1646582386232,1.56410393,87.308,87.26,17.194]
[1646582388033,1.56410393,87.307,87.26,17.194]
[1646582388634,1.56410393,87.308,87.26,17.194]
[1646582388833,1.56410393,87.307,87.26,17.194]
[1646582389738,23.7806,87.315,87.26,17.194]
[1646582390035,23.7806,87.315,87.27,17.1873]
[1646582396340,5.727,87.316,87.27,17.1873]
[1646582396544,1.56410393,87.324,87.27,17.1873]
[1646582396740,1.56410393,87.324,87.271,24.7208]
[1646582396941,1.56410393,87.324,87.281,62.85884872]
[1646582397147,1.56410393,87.325,87.281,62.85884872]
[1646582397943,1.56410393,87.325,87.29,17.1879]
[1646582398545,1.56410393,87.324,87.29,17.1879]
[1646582398743,1.56410393,87.323,87.29,17.1879]
[1646582400248,1.56074333,87.324,87.29,17.1879]
[1646582401249,1.56074333,87.323,87.29,17.1879]
[1646582402853,1.56074333,87.323,87.29,30.9679]
[1646582406754,1.56074333,87.325,87.29,30.9679]
[1646582408156,1.56074333,87.326,87.29,30.9679]
[1646582408376,1.56074333,87.325,87.29,30.9679]
[1646582409178,1.56074333,87.326,87.29,30.9679]
[1646582411985,1.56074333,87.326,87.29,13.78]
[1646582412387,1.56074333,87.334,87.29,13.78]
[1646582413085,1.56074333,87.337,87.29,13.78]
[1646582413285,1.56074333,87.338,87.29,13.78]
[1646582413687,1.56074333,87.337,87.29,13.78]
[1646582413888,59.41483719,87.348,87.29,13.78]
[1646582414087,59.41483719,87.348,87.29,30.9676]
[1646582415189,5.726,87.347,87.29,30.9676]
[1646582417091,29.5651,87.347,87.29,30.9676]
[1646582418091,29.0651,87.347,87.29,30.9676]
[1646582418891,114.9,87.346,87.29,30.9676]
[1646582419191,5.726,87.345,87.29,30.9676]
[1646582419391,114.9,87.345,87.29,30.9676]
[1646582419593,5.726,87.344,87.29,30.9676]
[1646582420592,114.9,87.345,87.29,30.9676]
[1646582420792,5.726,87.346,87.29,30.9676]
[1646582424094,23.8391,87.347,87.29,30.9676]
[1646582426697,114.9,87.346,87.29,30.9676]
[1646582426899,5.726,87.345,87.29,30.9676]
[1646582427300,5.726,87.346,87.29,30.9676]
[1646582432901,120.626,87.346,87.29,30.9676]
[1646582433603,5.726,87.346,87.29,30.9676]
[1646582434103,120.626,87.346,87.29,30.9676]
[1646582434403,5.726,87.346,87.29,30.9676]
[1646582435603,120.626,87.346,87.29,30.9676]
[1646582435903,114.9,87.339,87.282,24.7208]
[1646582436104,114.9,87.337,87.282,24.7208]
[1646582436304,114.9,87.335,87.26,13.78]
[1646582436506,118.02148666,87.333,87.26,13.78]
[1646582436804,17.1934,87.33,87.261,56.84020098]
[1646582437006,126.89184492,87.329,87.261,56.84020098]
[1646582437209,114.9,87.327,87.261,56.84020098]
[1646582437408,114.9,87.325,87.261,56.84020098]
[1646582437612,114.9,87.323,87.261,56.84020098]
[1646582437910,165.05248063,87.321,87.261,56.84020098]
[1646582438108,114.9,87.319,87.261,56.84020098]
[1646582438313,114.9,87.317,87.261,56.84020098]
[1646582438513,114.9,87.315,87.261,56.84020098]
[1646582438712,114.9,87.313,87.26,30.9737]
[1646582438913,114.9,87.309,87.261,5.728]
[1646582439113,114.9,87.307,87.234,28.501]
[1646582439314,114.9,87.305,87.234,28.501]
[1646582439515,114.9,87.303,87.234,28.501]
[1646582439713,114.9,87.301,87.235,58.69406658]
[1646582439914,114.9,87.299,87.24,17.1985]
[1646582440518,114.9,87.297,87.24,17.1985]
[1646582440717,120.629,87.296,87.24,17.1985]
[1646582441117,120.629,87.296,87.235,58.69406658]
[1646582442133,114.9,87.287,87.235,58.69406658]
[1646582442432,22.7493,87.287,87.235,58.69406658]
[1646582442833,114.9,87.286,87.235,58.69406658]
[1646582443835,5.729,87.285,87.235,58.69406658]
[1646582445036,114.9,87.279,87.235,58.69406658]
[1646582445239,114.9,87.277,87.235,58.69406658]
[1646582445443,114.9,87.275,87.235,58.69406658]
[1646582445638,17.2025,87.28,87.235,58.69406658]
[1646582445639,114.9,87.273,87.235,58.69406658]
[1646582445838,114.9,87.271,87.235,58.69406658]
[1646582446037,114.9,87.269,87.235,58.69406658]
[1646582446937,114.9,87.278,87.235,58.69406658]
[1646582447138,114.9,87.276,87.235,58.69406658]
[1646582447338,114.9,87.274,87.235,58.69406658]
[1646582447538,114.9,87.272,87.235,58.69406658]
[1646582447743,114.9,87.27,87.235,58.69406658]
[1646582448642,114.9,87.278,87.235,58.69406658]
[1646582448840,114.9,87.276,87.235,58.69406658]
[1646582449445,114.9,87.274,87.235,58.69406658]
[1646582449642,114.9,87.272,87.235,58.69406658]
[1646582449842,114.9,87.27,87.235,58.69406658]
[1646582450247,132.1045,87.27,87.214,5.73]
[1646582450546,114.9,87.268,87.214,5.73]
[1646582450745,114.9,87.268,87.213,23.5428]
[1646582451348,114.9,87.268,87.214,59.39594651]
[1646582451547,17.2064,87.26,87.214,59.39594651]
[1646582451745,120.631,87.259,87.214,59.39594651]
[1646582451951,114.9,87.257,87.208,5.731]
[1646582452145,114.9,87.255,87.194,5.731]
[1646582452345,114.9,87.253,87.193,21.39250857]
[1646582452546,114.9,87.251,87.193,21.39250857]
[1646582452744,114.9,87.249,87.193,21.39250857]
[1646582452947,114.9,87.247,87.194,52.75948893]
[1646582453146,114.9,87.245,87.194,52.75948893]
[1646582454247,114.9,87.246,87.194,52.75948893]
[1646582454450,114.9,87.239,87.194,52.75948893]
[1646582454846,5.732,87.238,87.194,52.75948893]
[1646582455046,23.1515,87.238,87.194,52.75948893]
[1646582455246,5.732,87.237,87.194,52.75948893]
[1646582455450,114.9,87.236,87.194,52.75948893]
[1646582455647,5.732,87.235,87.194,52.75948893]
[1646582456146,114.9,87.236,87.194,52.75948893]
[1646582456348,5.732,87.235,87.194,52.75948893]
[1646582456548,23.1515,87.238,87.194,52.75948893]
[1646582457848,17.2027,87.28,87.195,21.01061692]
[1646582458051,29.1537,87.279,87.2,17.2063]
[1646582458250,114.9,87.278,87.2,30.9863]
[1646582458449,5.731,87.277,87.2,30.9863]
[1646582458647,50.16425937,87.276,87.2,30.9863]
[1646582458848,120.631,87.275,87.2,30.9863]
[1646582459049,114.9,87.269,87.2,30.9863]
[1646582459249,114.9,87.267,87.2,30.9863]
[1646582459649,5.731,87.266,87.2,30.9863]
[1646582460551,114.9,87.259,87.2,30.9863]
[1646582460749,5.732,87.258,87.2,30.9863]
[1646582461149,114.9,87.256,87.2,30.9863]
[1646582461350,5.732,87.255,87.2,30.9863]
[1646582463853,5.732,87.255,87.196,23.0406]
[1646582465054,5.732,87.255,87.2,17.2065]
[1646582465655,120.632,87.256,87.2,17.2065]
[1646582468160,5.732,87.256,87.2,17.2065]
[1646582468358,22.8827,87.257,87.2,17.2065]
[1646582469757,114.9,87.256,87.2,17.2065]
[1646582469957,22.8827,87.257,87.2,17.2065]
[1646582470960,22.8827,87.257,87.2,30.9865]
[1646582472160,5.732,87.256,87.2,30.9865]
[1646582474259,120.632,87.256,87.2,30.9865]
[1646582475461,5.732,87.256,87.2,30.9865]
[1646582475967,22.8827,87.257,87.2,30.9865]
[1646582477871,5.732,87.268,87.2,30.9865]
[1646582478075,30.6316,87.279,87.22,17.1953]
[1646582478276,24.9006,87.279,87.23,13.78]
[1646582478475,6.27004387,87.278,87.23,13.78]
[1646582478873,3.12148666,87.3,87.231,71.03460509]
[1646582479072,5.729,87.299,87.231,71.03460509]
[1646582479276,5.729,87.299,87.24,17.197]
[1646582479475,5.729,87.303,87.24,30.977]
[1646582479674,29.40797904,87.302,87.241,24.4495]
[1646582479873,11.99727904,87.301,87.241,24.4495]
[1646582480076,6.26827904,87.3,87.241,24.4495]
[1646582480275,3.12148666,87.323,87.25,17.1933]
[1646582480576,23.1397,87.339,87.26,13.78]
[1646582480577,3.12148666,87.324,87.26,13.78]
[1646582480775,3.12148666,87.328,87.26,13.78]
[1646582480979,3.12148666,87.329,87.261,47.70810717]
[1646582481175,3.12148666,87.329,87.262,24.4495]
[1646582481575,114.9,87.328,87.262,24.4495]
[1646582481775,3.12148666,87.33,87.262,24.4495]
[1646582481776,144.30719267,87.327,87.262,24.4495]
[1646582481977,6.26749267,87.326,87.262,24.4495]
[1646582482183,6.26749267,87.326,87.27,17.1897]
[1646582482476,138.0397,87.327,87.27,17.1897]
[1646582482676,5.727,87.326,87.27,17.1897]
[1646582485393,138.0397,87.327,87.27,17.1897]
[1646582486994,23.1397,87.327,87.27,17.1897]
[1646582487294,23.1397,87.327,87.27,30.9697]
[1646582489200,138.0397,87.327,87.27,30.9697]
[1646582489599,5.727,87.326,87.27,30.9697]
[1646582489999,23.1397,87.327,87.27,30.9697]
[1646582492302,23.1746,87.34,87.27,30.9697]
[1646582493403,22.6746,87.34,87.27,30.9697]
[1646582493806,22.6746,87.34,87.271,5.727]
[1646582494004,22.6746,87.34,87.29,17.1866]
[1646582494206,23.0668,87.345,87.29,30.9666]
[1646582494607,23.0668,87.345,87.291,49.13832711]
[1646582494806,23.0668,87.345,87.292,5.726]
[1646582495406,23.0668,87.345,87.3,17.1843]
[1646582496608,23.0668,87.345,87.301,5.724]
[1646582497611,23.0668,87.345,87.31,17.1847]
[1646582499111,5.724,87.362,87.31,17.1847]
[1646582499307,23.5039,87.361,87.31,17.1847]
[1646582499506,5.724,87.36,87.31,17.1847]
[1646582500611,23.5039,87.361,87.311,5.724]
[1646582501109,23.5039,87.361,87.321,60.52069566]
[1646582503013,114.9,87.36,87.31,17.1844]
[1646582503211,114.9,87.36,87.302,23.5369]
[1646582503912,5.724,87.359,87.303,50.46774797]
[1646582504117,5.724,87.36,87.31,17.1847]
[1646582508214,5.724,87.36,87.31,30.9647]
[1646582509116,23.5039,87.361,87.31,30.9647]
[1646582509316,5.724,87.36,87.31,30.9647]
[1646582510516,23.5039,87.361,87.31,30.9647]
[1646582511118,114.9,87.36,87.302,23.5369]
[1646582511318,5.724,87.359,87.302,23.5369]
[1646582511519,121.16501035,87.358,87.302,23.5369]
[1646582511719,8.84548666,87.359,87.302,23.5369]
[1646582511720,114.9,87.356,87.302,23.5369]
[1646582511919,114.9,87.354,87.302,23.5369]
[1646582512125,114.9,87.352,87.303,60.25766085]
[1646582512319,11.98901035,87.351,87.303,60.25766085]
[1646582512519,29.57241035,87.35,87.303,60.25766085]
[1646582512719,5.724,87.349,87.303,60.25766085]
[1646582513718,120.624,87.349,87.303,60.25766085]
[1646582514422,114.9,87.347,87.302,23.5369]
[1646582514618,5.724,87.346,87.302,23.5369]
[1646582516423,114.9,87.344,87.26,57.2998]
[1646582516722,118.02148666,87.342,87.27,13.78]
[1646582516923,3.12148666,87.339,87.27,13.78]
[1646582517122,114.9,87.337,87.27,13.78]
[1646582517421,162.03331978,87.335,87.271,48.6790329]
[1646582517621,114.9,87.333,87.28,17.1912]
[1646582517822,5.726,87.332,87.28,17.1912]
[1646582518224,114.9,87.33,87.28,17.1912]
[1646582518427,5.727,87.329,87.28,17.1912]
[1646582519631,5.727,87.333,87.28,17.1912]
[1646582519827,114.9,87.331,87.28,17.1912]
[1646582520127,5.727,87.33,87.28,17.1912]
[1646582520328,11.99327086,87.33,87.28,17.1912]
[1646582520526,5.727,87.33,87.28,17.1912]
[1646582520729,5.727,87.334,87.28,17.1912]
[1646582520928,6.26591629,87.333,87.28,17.1912]
[1646582521229,5.726,87.332,87.28,17.1912]
[1646582521436,5.726,87.337,87.281,22.8268]
[1646582521628,23.0331,87.338,87.29,17.1868]
[1646582522030,3.12148666,87.346,87.29,17.1868]
[1646582522229,3.12148666,87.347,87.29,17.1868]
[1646582522429,6.2653247,87.345,87.291,23.5545]
[1646582522828,6.2653247,87.347,87.291,23.5545]
[1646582523030,3.12148666,87.349,87.291,23.5545]
[1646582523430,6.2653247,87.348,87.291,23.5545]
[1646582523630,9.38681136,87.355,87.3,17.1829]
[1646582523830,9.38681136,87.355,87.301,23.5545]
[1646582524031,9.38681136,87.364,87.301,23.5545]
[1646582524230,9.38681136,87.364,87.31,13.78]
[1646582524432,3.12148666,87.369,87.31,13.78]
[1646582524647,3.12148666,87.37,87.311,49.72600667]
[1646582524843,3.12148666,87.37,87.32,17.1812]
[1646582525243,9.38681136,87.372,87.32,17.1812]
[1646582525645,6.2653247,87.372,87.32,17.1812]
[1646582525846,5.724,87.371,87.32,17.1812]
[1646582526047,3.12148666,87.38,87.32,17.1812]
[1646582526446,3.12148666,87.381,87.32,30.9612]
[1646582526748,6.26316049,87.379,87.32,47.89351439]
[1646582526945,3.12148666,87.397,87.32,70.73279798]
[1646582527148,3.12148666,87.398,87.32,70.73279798]
[1646582527749,2.62148666,87.398,87.32,79.03279798]
[1646582527949,2.62148666,87.398,87.32,193.93279798]
[1646582528145,6.26189176,87.405,87.32,193.93279798]
[1646582528345,6.26189176,87.397,87.32,79.03279798]
[1646582528545,6.26189176,87.404,87.32,79.03279798]
[1646582528747,6.26189176,87.405,87.32,79.03279798]
[1646582529646,6.26189176,87.405,87.32,70.73279798]
[1646582529849,120.623,87.404,87.32,70.73279798]
[1646582530149,120.623,87.404,87.32,13.78]
[1646582530348,114.9,87.402,87.312,23.5545]
[1646582530548,5.723,87.401,87.311,49.72600667]
[1646582530748,121.16189176,87.4,87.311,49.72600667]
[1646582530949,68.81,87.395,87.278,14.68606751]
[1646582531151,114.9,87.39,87.27,13.78]
[1646582531351,114.9,87.388,87.27,13.78]
[1646582531650,5.724,87.387,87.27,13.78]
[1646582531848,162.80055981,87.386,87.28,17.1894]
[1646582532056,5.724,87.385,87.28,17.1894]
[1646582532252,114.9,87.383,87.28,17.1894]
[1646582532454,11.98589176,87.382,87.28,17.1894]